Cogmind - Beta 17 *** ADVENTURER MODE // 2026.08.05 @ 00:13:52 Player: Limbermonkey Result: Destroyed by H-66 Slayer with Heavy Assault Rifle Performance ------------- Evolutions (4) 2000 Regions Visited (4) 800 Robots Destroyed (11) 55 Value Destroyed (449) 449 Prototype IDs (12) 240 Alien Tech Used (0) 0 Bonus (800) 800 TOTAL SCORE: 4344 Bonus ------- Registered with UFD 300 Met Optimus in HQ 500 Cogmind --------- Core Integrity 0/850 Matter 129/300 Energy 165/300 System Corruption 18% Temperature Cool (0) Movement Walking (190) Ox1 Location -6/Factory Parts ------- > --- POWER (1) -------- (None) > --- PROPULSION (4) --- Armored Leg > --- UTILITY (8) ------ Large Storage Unit Large Battery > --- WEAPON (2) ------- (None) > --- INVENTORY (15) --- Improved Heat Sink High-capacity Storage Unit IFF Parser Makeshift Salvage Targeting Computer Launcher Guidance Computer ECM Suite Hacking Suite CPS Tube (2) CPS Tube (2) DRS Beacon (Ready) PL-3XN's Ring of Power Peak State ------------ > --- POWER ------------ Light Ion Engine > --- PROPULSION ------- Compact Wheel Armored Wheel Hover Unit Improved Hover Unit > --- UTILITY ---------- Scrap Suit High-capacity Storage Unit 0b10 Decoder Chip [Generic] Advanced Targeting Computer Transmission Jammer Jamming Amplifier Makeshift Hacking Suite > --- WEAPON ----------- Salvaging Laser Ripteeth > --- INVENTORY -------- Airjet Scrap Suit Improved Heat Sink Large Storage Unit Large Battery Sensor Array IFF Parser Makeshift Salvage Targeting Computer Launcher Guidance Computer ECM Suite Medium Reactive Plating Hacking Suite Assault Rifle Gauss Cannon CPS Tube CPS Tube DRS Beacon PL-3XN's Ring of Power [Rating: 48] Favorites ----------- Power Light Ion Engine Engine Light Ion Engine Propulsion Hover Unit Leg Improved Titanium Leg Wheel Compact Wheel Hover Unit Hover Unit Flight Unit Flight Unit Utility Sensor Array Device Sensor Array Storage Small Storage Unit Processor Advanced Targeting Computer Hackware Makeshift Hacking Suite Protection Medium Reactive Plating Weapon Salvaging Laser Energy Gun Salvaging Laser Ballistic Gun Assault Rifle Ballistic Cannon Gauss Cannon Slashing Weapon Ripteeth Build | -11 -10 -10 -9 -6 ------- Run | Yrd Mat Sub Scr Fac Slots Evolved 8 | . . . . 8 Power . | . . . . . Propulsion 2 | . . . . 2 Utility 6 | . . . . 6 Weapon . | . . . . . Parts Attached 39 | 5 4 . 11 19 Power 2 | 1 . . 1 . Engine 2 | 1 . . 1 . Core . | . . . . . Reactor . | . . . . . Propulsion 17 | 2 2 . 4 9 Treads . | . . . . . Leg 5 | . . . . 5 Wheel 4 | 2 . . 2 . Hover 5 | . . . 2 3 Flight 3 | . 2 . . 1 Utility 14 | 1 1 . 3 9 Device 5 | . 1 . . 4 Storage 4 | 1 . . 2 1 Processor 3 | . . . 1 2 Hackware 1 | . . . . 1 Protection 1 | . . . . 1 Artifact . | . . . . . Weapon 6 | 1 1 . 3 1 Energy Gun 2 | . 1 . 1 . Energy Cannon . | . . . . . Ballistic Gun 2 | 1 . . 1 . Ballistic Cannon 1 | . . . . 1 Launcher . | . . . . . Special Weapon . | . . . . . Impact Weapon . | . . . . . Slashing Weapon 1 | . . . 1 . Piercing Weapon . | . . . . . Special Melee Weapon . | . . . . . Unidentified Prototypes . | . . . . . Parts Lost 26 | . . 1 . 25 Power 1 | . . . . 1 Propulsion 11 | . . 1 . 10 Utility 9 | . . . . 9 Weapon 5 | . . . . 5 Highest Loss Streak 23 | . . 1 . 23 To Critical Strikes . | . . . . . Average Backups 9 | 2 4 6 8 13 Power . | . 1 1 . . Propulsion 1 | . 1 2 2 1 Utility 3 | . . 1 3 8 Weapon 2 | 1 1 2 2 1 Tool/Special . | . . . . . Unused Backups 9 | . . . 2 7 Power . | . . . . . Propulsion 1 | . . . 1 . Utility 6 | . . . 1 5 Weapon . | . . . . . Tool/Special 2 | . . . . 2 Average Slot Usage (%) 76 | . 96 99 71 81 Engine 12 | . 14 14 14 4 Wheel 14 | . 9 21 15 7 Hover 9 | . . . 9 14 Flight 1 | . 18 5 . . Device 13 | . 12 14 12 15 Storage 12 | . 14 14 14 6 Processor 3 | . . . 1 12 Energy Gun 3 | . 12 14 1 5 Ballistic Gun 3 | . 14 14 . 4 Peak Build Rating 48 | 5 7 7 19 48 Average Rating 13 | 3 6 6 7 39 On Entrance 7 | . 5 7 7 19 Avg Prop Armor Cover (%) 7 | . 4 . 9 6 Naked Turns . | . . . . . Heaviest Build 71 | 11 14 14 47 71 Greatest Support 80 | 26 26 26 36 80 Greatest Overweight (x) 23 | . 3 1 2 23 Average Overweight (x) . | . . . . 1 Largest Inventory Capacity 20 | 8 8 8 20 20 Average Capacity 12 | 6 8 8 11 19 Most Carried 20 | 5 6 6 20 20 Average Carried 10 | 2 4 5 9 16 Final Capacity 20 | 8 8 8 20 15 Final Carried 20 | 3 6 6 20 11 Scrap Suit Usage (%) 17 | . . . . 89 Parts Cannibalized 1 | . . . . 1 Class Distribution -------------------- 82% | Mutant 11% | Hacker-Mutant 5% | Scavenger-Mutant Dominant Class ---------------- Mutant | -10/Materials Mutant | -10/Subcaves Mutant | -9/Scraptown Hacker-Mutant | -6/Factory Resources | -11 -10 -10 -9 -6 ----------- Run | Yrd Mat Sub Scr Fac Matter Collected 631 | 250 51 22 182 126 Remotely . | . . . . . Salvage Created 391 | . 58 80 105 148 Parts 27 | . 3 5 9 10 Haulers Intercepted . | . . . . . Recyclers Shooed . | . . . . . Parts Field Recycled . | . . . . . Retrieved Matter . | . . . . . Parts Self-Destructed . | . . . . . Prevented . | . . . . . Parts Restored . | . . . . . Kills | -11 -10 -10 -9 -6 ------- Run | Yrd Mat Sub Scr Fac Combat Hostiles Destroyed 9 | . 1 2 2 4 Guns 9 | . 1 2 2 4 Classes Destroyed 7 | . 1 1 2 3 Operator 2 | . . . . 2 Swarmer 3 | . . . . 3 Grunt 1 | . 1 . . . Programmer 1 | . . . . 1 Subdweller 2 | . . 2 . . Guru 1 | . . . 1 . Scrapper 1 | . . . 1 . Best Kill Streak 2 | . 1 2 1 2 Combat Bots Only 2 | . 1 2 1 2 Max Kills in Single Turn 1 | . 1 1 1 1 Gunslinging . | . . . . . Exploded . | . . . . . Melee . | . . . . . Uniques/NPCs Destroyed . | . . . . . Combat | -11 -10 -10 -9 -6 -------- Run | Yrd Mat Sub Scr Fac Hostile Shots Fired 369 | . . 8 3 358 Missed 92 | . . 2 2 88 Hits 277 | . . 6 1 270 Melee 21 | . . . . 21 Projectile 256 | . . 6 1 249 AOE 2 | . . 2 . . Critical Strikes 12 | . . . 1 11 Part Disruptions 1 | . . . . 1 Damage Taken 4058 | . . 160 20 3878 Core 915 | . . 58 . 857 Absorbed by Shields . | . . . . . Ignored by Resistances 1214 | . . 43 5 1166 Regen/Repaired (Parts) 7 | . . . . 7 Core Remaining (%) 88 | 100 . . 76 . Volleys Fired 33 | . 1 6 4 22 Largest 2 | . 2 2 2 2 Hottest 70 | . 70 70 50 60 Shots Fired 58 | . 2 12 5 39 Gun 51 | . 2 12 5 32 Cannon 7 | . . . . 7 Launcher . | . . . . . Special . | . . . . . Kinetic 35 | . 1 6 4 24 Thermal 23 | . 1 6 1 15 Explosive . | . . . . . Electromagnetic . | . . . . . Robot Hit Streak 22 | . 1 13 17 22 Robot Miss Streak 2 | . . . . 2 Penetration Max . | . . . . . Secondary Targets 3 | . . 1 . 2 Max Gunslinging Chain 1 | . . 1 . 1 Shots Hit Robots 48 | . 1 12 5 30 Core Hits 23 | . 1 3 2 17 Critical Kills . | . . . . . Critical Parts Destroyed 1 | . . . . 1 Critical Strikes 2 | . . . . 2 Destroy 1 | . . . . 1 Blast 1 | . . . . 1 Melee Attacks 6 | . . . 6 . Impact . | . . . . . Slashing 6 | . . . 6 . Piercing . | . . . . . Sneak Attacks 1 | . . . 1 . Combat Hostiles 1 | . . . 1 . Follow-up Attacks . | . . . . . Damage Inflicted 678 | . 21 126 47 484 Guns 472 | . 21 126 43 282 Cannons 188 | . . . . 188 Explosions . | . . . . . Melee 4 | . . . 4 . Ramming 14 | . . . . 14 Kinetic 463 | . 9 51 35 368 Thermal 197 | . 12 75 8 102 Explosive . | . . . . . Electromagnetic . | . . . . . Impact . | . . . . . Slashing 4 | . . . 4 . Piercing . | . . . . . Highest Corruption 18 | . . . . 18 Average Corruption 15 | . . . . 15 Corruption Purged . | . . . . . Corruption Blocked . | . . . . . Effects 4 | . . . . 4 Message Errors 2 | . . . . 2 Energy Discharges 1 | . . . . 1 Data Loss (minor) 1 | . . . . 1 Overload Shots . | . . . . . Overflow Damage 2 | . . . . 2 Projectiles 2 | . . . . 2 Explosions . | . . . . . Melee . | . . . . . Knockbacks 3 | . . . . 3 Impact . | . . . . . Kinetic 3 | . . . . 3 Secondary . | . . . . . Self-Inflicted Damage 5 | . . . . 5 Shots . | . . . . . Rammed 9 | . . . . 9 Targets Rammed 9 | . . . . 9 Kicked . | . . . . . Crushed . | . . . . . Highest Temperature 34 | . 34 3 24 17 Average Temperature 10 | . 22 2 13 5 Received Heat Transfer 1375 | . . 24 37 1314 Siege Activations . | . . . . . Martial Activations . | . . . . . Shielding Activations . | . . . . . Robots Disrupted . | . . . . . Combat Hostiles . | . . . . . Robots Corrupted . | . . . . . Combat Hostiles . | . . . . . Parts Fried . | . . . . . Impact Corruptions . | . . . . . Robots Melted . | . . . . . Combat Hostiles . | . . . . . Parts Melted 5 | . 2 2 . 1 Heat Transferred 559 | . 37 222 25 275 Parts Sabotaged . | . . . . . Parts Stolen . | . . . . . Parts Stripped . | . . . . . Power Chain Reactions . | . . . . . Alert | -11 -10 -10 -9 -6 ------- Run | Yrd Mat Sub Scr Fac Maximum Alert Level . | . . . . . Low Security (%) 100 | 100 100 . . 100 Level 1 . | . . . . . Level 2 . | . . . . . Level 3 . | . . . . . Level 4 . | . . . . . Level 5 . | . . . . . High Security . | . . . . . Max Security . | . . . . . Peak Influence 50 | . 30 . . 50 Initial . | . . . . . Average 7 | . 5 . . 7 Influence Increases 190 | . 30 . . 160 Destroy 0b10 Robot/C 100 | . 20 . . 80 Destroy 0b10 Robot/NC 10 | . . . . 10 Destroy Leader 30 | . 10 . . 20 Select Force Hacks 50 | . . . . 50 Influence Decreases 190 | . 30 . . 160 Time Decay 145 | . 30 . . 115 Lost Part 45 | . . . . 45 Squads Dispatched 4 | . . . . 4 Investigation 2 | . . . . 2 Extermination 1 | . . . . 1 Reinforcement 1 | . . . . 1 Assault . | . . . . . Garrison . | . . . . . Intercept . | . . . . . Searches Triggered . | . . . . . Construction Impeded . | . . . . . Haulers Reinforced . | . . . . . Active Scanning Responses . | . . . . . Cargo Convoy Interrupts . | . . . . . Stealth | -11 -10 -10 -9 -6 --------- Run | Yrd Mat Sub Scr Fac Distress Signals . | . . . . . Communications Jammed . | . . . . . Distress Signals . | . . . . . Times Spotted 33 | . 4 3 8 18 Peak Tracking Total 10 | . 3 2 2 10 Tactical Retreats . | . . . . . Traps | -11 -10 -10 -9 -6 ------- Run | Yrd Mat Sub Scr Fac Traps Triggered 1 | . 1 . . . Indirectly . | . . . . . Trap Hack Attempts . | . . . . . Triggered . | . . . . . Disarmed . | . . . . . Reprogrammed . | . . . . . Reused . | . . . . . Traps Extracted . | . . . . . Installed . | . . . . . Triggered . | . . . . . Machines | -11 -10 -10 -9 -6 ---------- Run | Yrd Mat Sub Scr Fac Machines Disabled . | . . . . . Max in Single Turn . | . . . . . Machines Repaired . | . . . . . Machines Dismantled . | . . . . . Machines Sabotaged 1 | . . . . 1 Overloaded Fab Kills . | . . . . . Hacking | -11 -10 -10 -9 -6 --------- Run | Yrd Mat Sub Scr Fac Machines Accessed 15 | . . 1 10 4 Terminals 3 | . . . . 3 Fabricators . | . . . . . Repair Stations . | . . . . . Recycling Units 1 | . . . . 1 Scanalyzers . | . . . . . Garrison Access . | . . . . . Total Hacks 86 | . . 3 78 5 Successful 85 | . . 3 78 4 Failed 1 | . . . . 1 Catastrophic . | . . . . . Database Lockouts . | . . . . . Manual 11 | . . . 4 7 Terminals 4 | . . . . 4 Fabricators . | . . . . . Repair Stations . | . . . . . Recycling Units 1 | . . . . 1 Scanalyzers . | . . . . . Garrison Access . | . . . . . Terminal Hacks 82 | . . 3 78 1 Record 75 | . . 3 71 1 Robot Analysis 6 | . . . 6 . Proto ID Catalog 1 | . . . 1 . Fabricator Hacks . | . . . . . Repair Station Hacks . | . . . . . Recycling Unit Hacks 1 | . . . . 1 Retrieve Matter 1 | . . . . 1 Scanalyzer . | . . . . . Garrison Access Hacks . | . . . . . Unauthorized Hacks 2 | . . . . 2 Terminals 2 | . . . . 2 Sabotage 2 | . . . . 2 Fabricators . | . . . . . Repair Stations . | . . . . . Recycling Units . | . . . . . Scanalyzers . | . . . . . Garrison Access . | . . . . . Data Cores Recovered . | . . . . . Used . | . . . . . Hacking Detections 2 | . . . . 2 Full Trace Events . | . . . . . Feedback Events . | . . . . . Feedback Blocked . | . . . . . Robot Schematics Acquired . | . . . . . Robots Built . | . . . . . Authchips . | . . . . . Time . | . . . . . Total Robot Build Rating . | . . . . . Part Schematics Acquired . | . . . . . Parts Built . | . . . . . Authchips . | . . . . . Time . | . . . . . Total Part Build Rating . | . . . . . Part Studies Acquired . | . . . . . Parts Repaired . | . . . . . Time . | . . . . . Parts Recycled . | . . . . . Recycled Matter . | . . . . . Retrieved Matter . | . . . . . Retrieved Components . | . . . . . Parts Scanalyzed . | . . . . . Part Schematics Acquired . | . . . . . Parts Damaged . | . . . . . Bothacking | -11 -10 -10 -9 -6 ------------ Run | Yrd Mat Sub Scr Fac Used RIF Installer . | . . . . . Robots Hacked . | . . . . . Non-combat . | . . . . . Combat . | . . . . . Robot Hacks Applied . | . . . . . Relay Couplers Released . | . . . . . Fabnet Peak Effective % . | . . . . . Robots Rewired . | . . . . . Allies Hacked . | . . . . . Hacks Repelled . | . . . . . Allies | -11 -10 -10 -9 -6 -------- Run | Yrd Mat Sub Scr Fac Total Allies . | . . . . . Largest Group . | . . . . . Highest-Rated Group . | . . . . . Highest-Rated Ally . | . . . . . Initial UFD Resources 24 | . . . . 24 Total Orders . | . . . . . Ally Attacks . | . . . . . Total Damage . | . . . . . Kills . | . . . . . Allies Corrupted . | . . . . . Allies Melted 3 | . . . 3 . Intel | -11 -10 -10 -9 -6 ------- Run | Yrd Mat Sub Scr Fac Active Infowar (turns) 3295 | . 137 251 2273 634 Sensors 3115 | . 137 251 2273 454 IFF 453 | . . . . 453 Decoding 611 | . . . . 611 Jamming 28 | . . . . 28 Robot Analysis Total 6 | . . . 6 . Derelict Logs Recovered 2 | . . 1 1 . Drone Launches . | . . . . . Drone Recoveries . | . . . . . Decoded 0b10 Intel 15 | . . . . 15 Traps 4 | . . . . 4 Items 6 | . . . . 6 Machines 2 | . . . . 2 Patrols 2 | . . . . 2 Guards 1 | . . . . 1 Exploration | -11 -10 -10 -9 -6 ------------- Run | Yrd Mat Sub Scr Fac Turns Passed 3700 | 61 148 251 2515 725 Spaces Moved 3547 | 56 114 138 2821 418 Core 4 | 2 . . . 2 Treads . | . . . . . Legs 15 | . . . . 15 Wheels 1804 | 54 37 110 1332 271 Hover 1619 | . . . 1489 130 Flight 105 | . 77 28 . . Fastest Speed 50 | 50 90 90 56 108 Average Speed 89 | 86 112 95 84 115 Slowest Speed 1200 | 90 285 117 130 1200 Overloaded Moves . | . . . . . Propulsion Burnouts . | . . . . . Robots Hopped . | . . . . . Potential Cave-ins . | . . . . . Cave-ins Triggered . | . . . . . Exploration Rate (%) 29 | 3 32 8 96 9 Regions Visited 4 Branch Regions 2 Pre-discovered Areas 4 | . . 1 3 . Known Exits Taken . | . . . . . Unknown Exits Taken 4 | 1 1 1 1 . Scrap Searched 4 | . . . 4 . Spaces Dug . | . . . . . Terrain Destroyed . | . . . . . Melee . | . . . . . Projectile . | . . . . . AOE . | . . . . . Terrain Rammed . | . . . . . Walls Destroyed . | . . . . . Machines Disabled . | . . . . . Actions | -11 -10 -10 -9 -6 --------- Run | Yrd Mat Sub Scr Fac Total 3994 | 68 130 246 2945 605 Wait 262 | . 6 98 60 98 Move 3543 | 55 113 137 2820 418 Hop . | . . . . . Pick Up 50 | 8 5 2 20 15 Fast Attach 2 | . . . 2 . Attach 39 | 5 2 1 5 26 Detach 10 | . . . 5 5 Swap 24 | . 3 1 10 10 Drop 14 | . . 1 11 2 Fire 33 | . 1 6 4 22 Melee 6 | . . . 6 . Ram 9 | . . . . 9 Kick . | . . . . . Crush . | . . . . . Escape Stasis . | . . . . . Rewire 2 | . . . 2 . Trap . | . . . . . Miscellaneous . | . . . . . Route ------- -11/Scrapyard -10/Materials (discovered 2 exits: [*Mat] / *Sub) -10/Subcaves -9/Scraptown (discovered 2 exits: *Fac x2) -6/Factory (discovered 4 exits: Fac x2 / Low x2) History --------- Turn | Location | Event 19 | -11/Scrapyard | Discovered new exit (range 15) 62 | -11/Scrapyard | Entered Materials 63 | -10/Materials | Met a group of wandering Federalists 153 | -10/Materials | Discovered new exit (range 15) 164 | -10/Materials | Lost 3 allies 208 | -10/Materials | Discovered new exit (range 3) 210 | -10/Materials | Entered Subcaves 211 | -10/Subcaves | Continued accompanying wandering Federalists (2) 215 | -10/Subcaves | Learned location of 1 exit from Materials 242 | -10/Subcaves | Ambushed by Subdwellers from Twisted Machinery 248 | -10/Subcaves | Ambushed by Subdweller buried in earth 308 | -10/Subcaves | Build established: Mutant 365 | -10/Subcaves | Visited Clippyterm 368 | -10/Subcaves | Learned location of Extension (-6) 442 | -10/Subcaves | Wandering Federalist uncovered a shortcut to Scraptown 461 | -10/Subcaves | Entered Scraptown 673 | -9/Scraptown | Visited TADAMA 696 | -9/Scraptown | Visited Fellowship of the Rings 744 | -9/Scraptown | Visited UFD Registry 774 | -9/Scraptown | Visited Shadow of the Wyrm 793 | -9/Scraptown | Visited Cave Peace 845 | -9/Scraptown | Visited Cyclists 942 | -9/Scraptown | Visited Junk Repository 1083 | -9/Scraptown | Scanned Subdweller tech in exchange for log data 1086 | -9/Scraptown | Learned Research garrison access intel 1158 | -9/Scraptown | Discovered new exit (range 13) 1659 | -9/Scraptown | Registered with UFD as "Matrixtorch" 1681 | -9/Scraptown | Visited Science Guys 1723 | -9/Scraptown | Visited Derelict Rescue Squad 1729 | -9/Scraptown | Found DRS Beacon 1745 | -9/Scraptown | Visited Scrap Suit Storage 1779 | -9/Scraptown | Discovered new exit (range 3) 1841 | -9/Scraptown | Visited Cartography Club 1946 | -9/Scraptown | Learned location of Upper Caves (-5) 1946 | -9/Scraptown | Learned location of Cetus (-6) 1946 | -9/Scraptown | Learned location of Hub_04(d) (-6) 1946 | -9/Scraptown | Learned 12 Materials zone layouts 1946 | -9/Scraptown | Learned 16 Materials zone layouts 1946 | -9/Scraptown | Learned 8 Research zone layouts 1946 | -9/Scraptown | Learned 12 Research zone layouts 1946 | -9/Scraptown | Learned 24 Upper Caves zone layouts 1946 | -9/Scraptown | Learned 8 Proximity Caves zone layouts 1946 | -9/Scraptown | Learned location of 1 exit from Research 1946 | -9/Scraptown | Learned location of 1 exit from Upper Caves 1946 | -9/Scraptown | Learned location of 3 exits from Proximity Caves 1981 | -9/Scraptown | Visited Analyses Database 2008 | -9/Scraptown | Visited Infowarlord's Domain 2024 | -9/Scraptown | Visited DA-N13 Charitable Foundation 2028 | -9/Scraptown | Found DCF Scrap (27 items) 2257 | -9/Scraptown | Visited Research Penetration Think Tank 2288 | -9/Scraptown | Visited LU-1G1's Boring Crew 2414 | -9/Scraptown | Visited Scrapoid Research Area 2569 | -9/Scraptown | Met Optimus 2569 | -9/Scraptown | Accepted into 0bPrime 2701 | -9/Scraptown | Found Scrap Suit 2703 | -9/Scraptown | Found Scrap Suit 2728 | -9/Scraptown | Civil war broke out across Scraptown 2779 | -9/Scraptown | Found PL-3XN's Ring of Power 2850 | -9/Scraptown | Lost 12 allies 2976 | -9/Scraptown | Entered Factory 2976 | -6/Factory | Evolved 8 slots: Propulsion x2, Utility x6 2977 | -6/Factory | Identified exit to Factory 2977 | -6/Factory | Identified exit to Lower Caves 3618 | -6/Factory | System corruption reached 10% 3643 | -6/Factory | Core integrity fell below 50% 3685 | -6/Factory | Core integrity fell below 20% 3701 | -6/Factory | Destroyed by H-66 Slayer with Heavy Assault Rifle Last Messages --------------- 03667_ Critical hit (Burn: +37). 03668_ Acquired Imp. Titanium Leg. 03670_ Penetrated by Slug. 03672_ Acquired 20 matter. 03673_ Penetrated by Slug. 03673_ Slug penetrates G-50 Soldier. 03675_ Penetrated by Slug. 03678_ Slug penetrates Wall. 03678_ Penetrated by Slug. 03678_ Critical hit (Burn: +37). 03683_ Penetrated by Slug. 03684_ Sensor Array destroyed. 03686_ Knocked back. 03686_ Imp. Titanium Leg destroyed. 03687_ System corrupted: Energy discharge (-42). 03688_ Imp. Titanium Leg destroyed. 03688_ Acquired Arm. Leg. 03689_ Imp. Titanium Leg destroyed. 03691_ Slug penetrates G-50 Soldier. 03701_ Penetrated by Slug. Map ----- +----------------------------------------------------+ | ????????????????# """ """ #?????????? | | ????????????????# """ """ #?????????? | | ????????????????# #?????????? | | ????????????????# """ #?????????? | | ????????????????# """ #?????????? | | ????????????????# """ "Y" #?????????? | | ????????????????# """ #?????????? | | ????????????????#######+####+########### | | ????????????????????# # # | | ????????????????????# # """" # | | ????????????????????# [ ! # """" # | | ?????????############ + """" # | | ?? / !! ### """" # | | ?????????###+#####+## !! #?# # | | ???????????# =% % # #?###+#### | | ???????????# % # g ##### #??? | | ???????????# # !h #??? | | ???????????# # ggg #??? | | ???????????# + g #??? | | ??!????????# # #??? | | !??????????# # g###########??? | | ???????????# # #????????????? | | ???????????# # h #????????????? | | ???????????########## b#????????????? | | ????????????????????#t ############## | | ????????????????????# @# """ # | | ????????????????????# # "T" # | | ????????????????????# # " " # | | ???????############## # # | | ???????# # # # | | ???????# # # # | | ???????# """""" # + """"""" # | | ???????# """""" + # """"""" # | | ???????# """""" # # """"""" # | | ???????# """""" # # """""""???? | | ???????# """""" # # ?????? | | ???????# """""" # # ?????? | | ???????# """""" # #########????? | | ???????# """""" # #????????????? | | ???????# """""" # #????????????? | | ???????# # #????????????? | | ???????##+########### ^ #????????????? | | ????????# #???#######^^ ^ #????????????? | | ????????# #??? #????????????? | | ????????# #??# #????????????? | | ????????# #??# #????????????? | | #######?# #??# #????????????? | | #?# #??# ?????????????? | | """"" #?# #??# ###+###############?? | | """"" ### #### # #?? | +----------------------------------------------------+ Best States ------------- Heat Dissipation 37 Energy Generation 10 Energy Capacity 300 Matter Stores 300 Matter Capacity 300 Sight Range 16 Robot Scan Range 14 Terrain Scan Density 10 Jamming Range 12 Armor Coverage 225 Resistance: KI 50 Resistance: TH 20 Resistance: EX 20 Resistance: EM 20 Resistance: I 20 Resistance: S 20 Resistance: P 20 Evasion (%) 53 Targeting Accuracy 8 Offensive Hacking 21 Item Schematics ----------------- None Robot Schematics ------------------ None Fabricated ------------ Nothing Repaired ---------- Nothing Studied --------- None Alien Tech Used ----------------- None Achievements -------------- Armchair Analyst Brute Force Civilization 2243 Do Not Disturb Librarian Link The Feds No Room For Error Plot Armor Strength In Numbers Uncivil War Challenges ------------ None Game ------ Seed BladeGammaArray Manual? 0 Play Time 01:37:28 Cumulative 18.3 hours Start 2026.08.04 @ 21:11:44 End 2026.08.05 @ 00:13:52 Sessions 1 Manual Loads 0 Difficulty Adventurer Special Mode None Game No. 10 Rogue 0 Adventurer 10 Explorer 0 Win Type - Total 0 Types 0/0/0/0/0/0/0/0/0/0 Lore% 12 Gallery% 16 Achievement% 15 Wizard Run 0 Options --------- Layout 1 ASCII 0 Keyboard 0 Movement Numpad Keybinds 0 Fullscreen 1 Font 48/Smallcaps Map View 50x35 Zoom Use 0% Tactical HUD 1 Map Filters NONE Filters NONE Steam 1 RUN: 96627779-8569-4525-931b-d9b25b3f168b